fUST/lending_fUST_20250225
["ID","MTS","AMOUNT","RATE_DAILY","PERIOD"]
[354432561,1740491433570,-520.0,0.00025904,2]
[354432562,1740491433581,-500.0,0.00025904,2]
[354432563,1740491433591,-500.0,0.00025904,2]
[354432564,1740491433602,-405.98260863,0.00025904,2]
[354432565,1740491433613,-500.0,0.00025904,2]
[354432566,1740491433624,-500.0,0.00025904,2]
[354432567,1740491433635,-500.0,0.00025904,2]
[354432568,1740491433645,-500.0,0.00025904,2]
[354432569,1740491433656,-644.01006681,0.00025904,2]
[354432570,1740491433667,-500.0,0.00025904,2]
[354432571,1740491433678,-500.0,0.00025904,2]
[354432572,1740491433690,-500.0,0.00025904,2]
[354432573,1740491433701,-500.0,0.00025904,2]
[354432574,1740491433714,-448.93349302,0.00025904,2]
[354432584,1740491438581,-173.19626769,0.00016413,2]
[354432585,1740491438592,-3924.61106897,0.00025645,2]
[354432586,1740491438604,-500.0,0.00025645,2]
[354432587,1740491438616,-575.38893103,0.00025645,2]
[354432588,1740491438625,-348.04279688,0.00025904,2]
[354432589,1740491438637,-151.95720312,0.00025904,2]
[354432590,1740491438647,-1348.04279688,0.00025905,37]
[354432591,1740491438658,-13080.45494193,0.00025905,37]
[354432593,1740491438848,-27218.73739615,0.00025905,37]
[354432594,1740491438857,-24900.0,0.00025953,2]
[354432595,1740491438867,-500.0,0.00026178,2]
[354432596,1740491438877,-500.0,0.00026452,2]
[354432597,1740491438887,-156.93,0.000266,31]
[354432598,1740491438896,-503.36246671,0.00026726,2]
[354432599,1740491438906,-6156.4630623,0.00026763,2]
[354432600,1740491438915,-578.16894119,0.00027109,2]
[354432601,1740491438924,-346.15605401,0.00027109,2]
[354432602,1740491438934,-500.0,0.00027109,2]
[354432603,1740491438943,-500.0,0.0002711,2]
[354432604,1740491438952,-500.0,0.0002711,2]
[354432605,1740491438962,-543.89531724,0.0002711,2]
[354432606,1740491438973,-500.0,0.0002711,2]
[354432607,1740491438983,-500.0,0.0002711,2]
[354432608,1740491438992,-501.13223201,0.0002711,2]
[354432609,1740491439002,-507.30543623,0.0002711,2]
[354432610,1740491439011,-500.75840755,0.0002711,2]
[354432611,1740491439021,-501.06186715,0.0002711,2]
[354432612,1740491439030,-500.0,0.0002711,2]
[354432613,1740491439040,-160.049611,0.00027198,5]
[354432614,1740491439049,-356.328108,0.00027397,2]
[354432615,1740491439058,-4842.32516594,0.00027452,4]
[354432616,1740491439068,-3426.16799511,0.00027538,2]
[354432617,1740491439078,-252.12007553,0.00027578,2]
[354432618,1740491439087,-318.0,0.00028,120]
[354432619,1740491439097,-2258.0,0.00028017,2]
[354432620,1740491439107,-32811.0577081,0.00028177,3]
[354432621,1740491439116,-9631.09860004,0.00028187,2]
[354432622,1740491439125,-4842.32516594,0.0002921,5]
[354432623,1740491439134,-285.66,0.00029517,120]
[354432624,1740491439144,-217.0,0.00029517,120]
[354432625,1740491439154,-150.5,0.00029527,120]
[354432626,1740491439164,-217.0,0.00029527,120]
[354432627,1740491439173,-217.0,0.00029537,120]
[354432628,1740491439182,-150.5,0.00029537,120]
[354432629,1740491439192,-160.0,0.00029617,3]
[354432630,1740491439202,-19603.87691479,0.00029617,3]
[354432631,1740491439211,-164055.28854,0.00029628,3]
[354432632,1740491439222,-244979.15749778,0.00029638,120]
[354432633,1740491439232,-160.0,0.0003,10]
[354432634,1740491439241,-265.0,0.0003,2]
[354432635,1740491439250,-1104.0,0.00030618,2]
[354432636,1740491439260,-4842.32516594,0.00030969,5]
[354432637,1740491439269,-160.049611,0.00031288,2]
[354432638,1740491439279,-160.049611,0.00031796,5]
[354432639,1740491439288,-3426.16799511,0.00032538,2]
[354432640,1740491439298,-550.87756042,0.00032631,5]
[354432641,1740491439307,-500.0,0.00032631,5]
[354432642,1740491439317,-500.0,0.00032631,5]
[354432643,1740491439327,-500.0,0.00032631,5]
[354432644,1740491439336,-4842.32516594,0.00032728,6]
[354432645,1740491439346,-265.0,0.00033,2]
[354432646,1740491439356,-265.0,0.00033,2]
[354432647,1740491439366,-252.12007553,0.00033111,2]
[354432648,1740491439376,-4842.32516594,0.00034486,6]
[354432649,1740491439386,-175.89,0.00035296,2]
[354432650,1740491439395,-175.89,0.00035296,2]
[354432651,1740491439405,-41647.23513496,0.00035297,92]
[354432652,1740491439415,-265.0,0.00036,2]
[354432653,1740491439425,-265.0,0.00036,2]
[354432654,1740491439434,-4842.32516594,0.00036245,7]
[354432655,1740491439444,-160.049611,0.00036395,5]
[354432656,1740491439453,-160.049611,0.00036575,2]
[354432657,1740491439463,-32811.0577081,0.00037528,3]
[354432658,1740491439474,-3426.16799511,0.00037538,2]
[354432659,1740491439483,-163.07754488,0.000377,5]
[354432660,1740491439492,-4842.32516594,0.00038003,8]
[354432661,1740491439502,-252.12007553,0.00038644,2]
[354432662,1740491439511,-265.0,0.00039,2]
[354432663,1740491439520,-4842.32516594,0.00039762,8]
[354432664,1740491439529,-166.0,0.00039803,120]
[354432665,1740491439538,-32811.0577081,0.0003999,4]
[354432666,1740491439548,-50000.0,0.0004,20]
[354432667,1740491439557,-250.0,0.0004,120]
[354432668,1740491439566,-1010.08464846,0.00040809,5]
[354432669,1740491439575,-1000.0,0.00040809,5]
[354432670,1740491439585,-1002.53982847,0.00040809,5]
[354432671,1740491439594,-1000.0,0.00040809,5]
[354432672,1740491439604,-1016.28311077,0.00040809,5]
[354432673,1740491439613,-19603.87691479,0.00040932,2]
[354432674,1740491439622,-160.0,0.00040947,2]
[354432675,1740491439631,-1917.15264927,0.00040977,30]
[354432676,1740491439641,-500.0,0.00041095,120]
[354432677,1740491439650,-500.0,0.00041095,120]
[354432678,1740491439659,-500.0,0.00041095,120]
[354432679,1740491439668,-642.56726912,0.00041095,120]
[354432680,1740491439678,-614.81024551,0.000411,2]
[354432681,1740491439687,-500.0,0.000411,10]
[354432682,1740491439697,-485.961,0.00041505,61]
[354432683,1740491439707,-4842.32516594,0.00041521,9]
[354432684,1740491439718,-160.049611,0.00041862,2]
[354432685,1740491439730,-160.0,0.00042155,30]
[354432686,1740491439740,-149.999999,0.00042156,120]
[354432687,1740491439751,-300000.0,0.00042156,120]
[354432688,1740491439762,-224121.0,0.00042156,120]
[354432689,1740491439772,-500.0,0.00042156,30]
[354432690,1740491439781,-500.0,0.00042156,120]
[354432691,1740491439792,-2000.0,0.00042156,30]
[354432692,1740491439803,-2000.0,0.00042156,30]
[354432693,1740491439814,-848.0,0.00042156,30]
[354432694,1740491439826,-2000.0,0.00042156,30]
[354432695,1740491439836,-2000.0,0.00042156,30]
[354432696,1740491439847,-848.0,0.00042156,30]
[354432697,1740491439984,-2830.12,0.00042156,120]
[354432698,1740491439995,-250.0,0.00042156,10]
[354432699,1740491440004,-260.88904,0.00042156,10]
[354432700,1740491440014,-247.5,0.00042156,30]
[354432701,1740491440023,-334.5,0.00042156,30]
[354432702,1740491440034,-151.0,0.00042156,120]
[354432703,1740491440044,-151.0,0.00042156,120]
[354432704,1740491440055,-151.0,0.00042156,120]
[354432705,1740491440065,-151.0,0.00042156,120]
[354432706,1740491440075,-500.65570921,0.00042171,10]
[354432707,1740491440086,-500.0,0.000422,10]
[354432708,1740491440095,-212.3929204,0.00042673,2]
[354432709,1740491440105,-3000.0,0.0004276,120]
[354432710,1740491440115,-19603.87691479,0.00042761,120]
[354432711,1740491440124,-503.9580824,0.00042773,10]
[354432712,1740491440135,-500.0,0.00042773,10]
[354432713,1740491440144,-501.94280497,0.00042773,7]
[354432714,1740491440154,-500.19002515,0.00042873,5]
[354432715,1740491440164,-500.0,0.00042873,10]
[354432716,1740491440174,-501.41863203,0.00042873,7]
[354432717,1740491440184,-500.0,0.00042873,2]
[354432718,1740491440194,-19603.87691479,0.00042881,30]
[354432719,1740491440204,-19603.87691479,0.00042881,120]
[354432720,1740491440213,-3565.28444563,0.00043,120]
[354432721,1740491440224,-2144.06003934,0.00043,120]
[354432722,1740491440234,-4842.32516594,0.00043279,9]
[354432723,1740491440244,-1024.39217021,0.00044,60]
[354432724,1740491440254,-252.12007553,0.00044177,28]
[354432725,1740491440264,-2000.0,0.0004429,120]
[354432726,1740491440273,-151.0,0.00044688,120]
[354432727,1740491440282,-151.0,0.00044688,120]
[354432728,1740491440291,-151.0,0.00044688,120]
[354432729,1740491440301,-151.0,0.00044688,120]
[354432730,1740491440311,-41647.23513496,0.00044688,120]
[354432731,1740491440320,-50000.0,0.00045,25]
[354432732,1740491440330,-4842.32516594,0.00045038,10]
[354432733,1740491440339,-774.97801901,0.00045581,6]
[354432734,1740491440349,-212.39292037,0.00045678,2]
[354432735,1740491440359,-39328.56214887,0.00046,2]
[354432736,1740491440368,-1000.0,0.0004633,10]
[354432737,1740491440378,-1000.0,0.0004633,10]
[354432738,1740491440387,-1000.0,0.0004633,10]
[354432739,1740491440397,-2000.0,0.0004672,120]
[354432740,1740491440406,-4842.32516594,0.00046797,10]
[354432741,1740491440416,-160.049611,0.0004715,2]
[354432742,1740491440426,-1917.15264927,0.00047479,30]
[354432743,1740491440435,-151.0,0.00047971,2]
[354432744,1740491440444,-166.1,0.00048519,2]
[354432745,1740491440454,-4842.32516594,0.00048555,11]
[354432746,1740491440464,-151.0,0.000486,25]
[354432747,1740491440475,-212.39292037,0.00048684,2]
[354432748,1740491440484,-302.0,0.00049067,2]
[354432749,1740491440494,-500.0,0.00049315,120]
[354432750,1740491440502,-5000.0,0.00049315,14]
[354432751,1740491440512,-5019.0,0.00049315,14]
[354432752,1740491440521,-500.0,0.00049441,60]
[354432753,1740491440530,-2000.0,0.00049636,120]
[354432754,1740491440540,-252.12007553,0.00049709,28]
[354432755,1740491440549,-508.5537272,0.00049874,60]
[354432756,1740491440559,-500.0,0.00049936,10]
[354432757,1740491440568,-500.0,0.00049936,7]
[354432758,1740491440577,-50000.0,0.0005,30]
[354432759,1740491440587,-19603.87691479,0.0005,30]
[354432760,1740491440596,-500.0,0.0005,120]
[354432761,1740491440606,-500.0,0.0005,120]
[354432762,1740491440615,-500.0,0.0005,120]
[354432763,1740491440625,-286300.96268433,0.0005,120]
[354432766,1740491441058,-200.0,0.00035,120]
[354432767,1740491441068,-26286.03731567,0.0005,120]
[354432768,1740491441077,-4842.32516594,0.00050314,11]
[354432769,1740491441086,-151.0,0.000504,23]
[354432770,1740491441095,-355.4206398,0.00050587,30]
[354432771,1740491441104,-355.4206398,0.00050587,30]
[354432772,1740491441114,-50000.0,0.00051,31]
[354432773,1740491441124,-154.8524317,0.00051313,30]
[354432774,1740491441133,-154.8524317,0.00051313,30]
[354432775,1740491441142,-1126.6612545,0.00051313,30]
[354432776,1740491441152,-154.8524317,0.00051313,30]
[354432777,1740491441164,-154.8524317,0.00051313,30]
[354432778,1740491441173,-154.8524317,0.00051313,30]
[354432779,1740491441182,-312.8448887,0.00051313,30]
[354432780,1740491441192,-308.2144196,0.00051313,30]
[354432781,1740491441202,-364.137518,0.00051313,30]
[354432782,1740491441211,-212.39292037,0.00051689,2]
[354432783,1740491441222,-50000.0,0.00052,32]
[354432784,1740491441232,-401.90163984,0.00052055,60]
[354432785,1740491441241,-4842.32516594,0.00052072,12]
[354432786,1740491441250,-151.0,0.000522,27]
[354432787,1740491441261,-50000.0,0.00053,33]
[354432788,1740491441270,-3000.0,0.00053,120]
[354432789,1740491441279,-200.0,0.00053,2]
[354432790,1740491441288,-500.0,0.00053012,60]
[354432791,1740491441298,-500.0,0.00053209,60]
[354432792,1740491441307,-13643.578555,0.00053449,120]
[354432793,1740491441316,-4842.32516594,0.00053831,13]
[354432794,1740491441325,-100000.0,0.00053847,120]
[354432795,1740491441335,-1000.0,0.0005385,90]
[354432796,1740491441344,-1000.0,0.0005385,90]
[354432797,1740491441353,-500.0,0.0005385,30]
[354432798,1740491441362,-9156.2668256,0.000539,120]
[354432799,1740491441371,-902.7768841,0.000539,120]
[354432800,1740491441380,-217.0,0.0005397,120]
[354432801,1740491441390,-500.0,0.00053973,10]
[354432802,1740491441399,-500.0,0.00053973,10]
[354432803,1740491441409,-500.0,0.00053973,10]
[354432804,1740491441418,-217.0,0.0005398,120]
[354432805,1740491441427,-217.0,0.0005398,120]
[354432806,1740491441437,-1917.15264927,0.0005398,30]
[354432807,1740491441446,-217.0,0.0005399,120]
[354432808,1740491441456,-217.0,0.0005399,120]
[354432809,1740491441466,-160.0,0.00053999,60]
[354432810,1740491441475,-160.3474055,0.00053999,60]
[354432811,1740491441485,-3000.0,0.00053999,60]
[354432812,1740491441494,-3000.0,0.00053999,120]
[354432813,1740491441503,-50000.0,0.00054,34]
[354432814,1740491441512,-23498.60466402,0.00054,120]
[354432815,1740491441522,-236937.8983585,0.00054,61]
[354432816,1740491441531,-1000.0,0.00054,120]
[354432817,1740491441540,-964547.67665788,0.00054,120]
[354432854,1740491443950,-257.44,0.00040922,3]
[354432855,1740491443961,-514.88,0.00042292,3]
[354432856,1740491443974,-21048.42927899,0.00054,120]
[354432857,1740491443986,-435309.83793872,0.00054,120]
[354432858,1740491444898,-10261.05150879,0.00054,120]
[354432860,1740491444910,-2364.39098268,0.00054,120]
[354432861,1740491444986,-355.34213273,0.00054,120]
[354432867,1740491446906,-173.19626767,0.00020486,2]
[354432868,1740491446917,-7215.8366462,0.00035,120]
[354432869,1740491446927,-8962.8185272,0.00054,120]
[354432877,1740491631794,5000.0,0.0002,10]
[354432878,1740491639978,5000.0,0.0002,10]
[354432879,1740491648471,5000.0,0.0002,10]
[354432880,1740491659110,5000.0,0.0002,10]
[354432881,1740491697056,224.84961601,0.0002,10]
[354432882,1740491897984,202.95173,0.00013699,2]
[354432883,1740491937096,1498.16,0.00010959,2]
[354432884,1740491947797,1248.47,0.00010959,2]
[354432885,1740491969374,520.2,0.00010959,2]
[354432886,1740491980827,433.5,0.00010959,2]
[354432887,1740491991352,361.25,0.00010959,2]
[354432888,1740492002012,301.04,0.00010959,2]
[354432889,1740492006700,680.0,0.0002,10]
[354432890,1740492012714,250.87,0.00010959,2]
[354432891,1740492023250,209.05,0.00010959,2]
[354432892,1740492034306,174.21,0.00010959,2]
[354432893,1740492044702,871.09,0.00010959,2]
[354432894,1740492117684,520.19,0.00010959,2]
[354432895,1740492128227,433.49,0.00010959,2]
[354432896,1740492138772,361.24,0.00010959,2]
[354432897,1740492143803,2281.906,0.0002,10]
[354432898,1740492149052,301.04,0.00010959,2]
[354432899,1740492159702,250.86,0.00010959,2]
[354432900,1740492170276,209.05,0.00010959,2]
[354432901,1740492180827,174.21,0.00010959,2]
[354432902,1740492191613,871.09,0.00010959,2]
[354432903,1740492201059,600.00143734,0.0002,14]
[354432904,1740492225163,5000.0,0.00014932,2]
[354432905,1740492233530,1852.790162,0.00014932,2]
[354432906,1740492233563,3147.209838,0.00014932,2]
[354432907,1740492242471,5000.0,0.00014932,2]
[354432908,1740492245956,4340.0,0.0002,10]
[354432909,1740492250239,5000.0,0.00014932,2]
[354432910,1740492258292,5000.0,0.00014932,2]
[354432911,1740492266158,1852.790162,0.00014932,2]
[354432912,1740492266228,3147.209838,0.00014932,2]
[354432913,1740492274952,5000.0,0.00014932,2]
[354432914,1740492276328,182.507023,0.00014957,2]
[354432915,1740492282839,195.06018828,0.00014932,2]
[354432916,1740492291089,5000.0,0.00014932,2]
[354432917,1740492306285,5000.0,0.00014932,2]
[354432918,1740492321949,1475.22295072,0.00014932,2]
[354432919,1740492321983,3524.77704928,0.00014932,2]
[354432920,1740492336025,574.2,0.00010959,2]
[354432921,1740492337917,5000.0,0.00014932,2]
[354432922,1740492346663,478.5,0.00010959,2]
[354432923,1740492353405,5000.0,0.00014932,2]
[354432924,1740492357112,398.75,0.00010959,2]
[354432925,1740492367627,332.29,0.00010959,2]
[354432926,1740492368751,3494.59559476,0.00014932,2]
[354432927,1740492377900,250.0,0.00014746,2]
[354432928,1740492378138,440.97,0.00010959,2]
[354432929,1740492388629,367.47,0.00010959,2]
[354432930,1740492399184,138.44735596,0.00010959,2]
[354432931,1740492399220,167.78264404,0.00010959,2]
[354432932,1740492409701,255.19,0.00010959,2]
[354432933,1740492413000,3123.13539889,0.00014932,2]
[354432934,1740492420496,376.72,0.00010959,2]
[354432935,1740492431129,313.93,0.00010959,2]
[354432936,1740492435126,-212.9715088,0.00015082,2]
[354432937,1740492435153,-300.0,0.000156,2]
[354432938,1740492435175,-241.0124912,0.00015601,2]
[354432939,1740492440111,-206.7913398,0.00015178,2]
[354432940,1740492440135,-8715.37741097,0.00015601,2]
[354432941,1740492441605,343.64,0.00010959,2]
[354432942,1740492452317,286.37,0.00010959,2]
[354432943,1740492462970,238.64,0.00010959,2]
[354432944,1740492473506,198.87,0.00010959,2]
[354432945,1740492483997,165.72,0.00010959,2]
[354432946,1740492494579,828.63,0.00010959,2]
[354433007,1740492636239,-250.0,0.00014952,2]
[354433009,1740492636249,-276.970508,0.00015177,2]
[354433012,1740492636259,-300.0,0.000156,2]
[354433014,1740492636269,-12240.46868033,0.00015601,2]
[354433016,1740492636279,-1000.0000002,0.00015814,2]
[354433018,1740492636288,-500.0,0.00015814,2]
[354433019,1740492636298,-500.0,0.00015814,2]
[354433021,1740492636308,-19603.87691479,0.00016112,2]
[354433023,1740492636318,-10000.0,0.00016163,2]
[354433025,1740492636328,-34113.69296629,0.000162,2]
[354433040,1740492636469,-362.2207672,0.00016221,2]
[354433043,1740492636480,-34403.16503526,0.00016922,2]
[354433045,1740492636493,-2245.07085901,0.00016922,2]
[354433047,1740492636508,-1204.15000005,0.00016922,2]
[354433139,1740492637946,-21191.30307828,0.00016922,2]
[354433140,1740492637956,-24900.0,0.00016932,2]
[354433141,1740492637967,-709.7204876,0.00016968,2]
[354433142,1740492637977,-451.0,0.00016973,2]
[354433143,1740492637987,-275.23146651,0.00016973,2]
[354433144,1740492637997,-500.0,0.00016973,2]
[354433145,1740492638007,-500.0,0.00016973,2]
[354433146,1740492638016,-500.19002515,0.00016973,2]
[354433147,1740492638026,-500.0,0.00016973,2]
[354433148,1740492638036,-500.0,0.00016973,2]
[354433149,1740492638046,-500.0,0.00016973,2]
[354433150,1740492638055,-500.0,0.00016973,2]
[354433151,1740492638065,-200.06239982,0.00016973,2]
[354433152,1740492638074,-500.0,0.00016973,2]
[354433153,1740492638085,-500.0,0.00016973,2]
[354433154,1740492638094,-500.0,0.00016973,2]
[354433155,1740492638105,-420.0,0.00017063,2]
[354433156,1740492638117,-202.95173,0.00017123,2]
[354433157,1740492638127,-182.507023,0.00017201,2]
[354433158,1740492638137,-587.99800456,0.000179,2]
[354433159,1740492638147,-152.0,0.00017913,2]
[354433160,1740492638157,-237.75209317,0.0001795,2]
[354433161,1740492638167,-453.99218901,0.0001795,2]
[354433162,1740492638176,-500.0,0.0001795,2]
[354433163,1740492638189,-311.6436891,0.0001795,2]
[354433164,1740492638198,-500.0,0.0001795,2]
[354433165,1740492638208,-500.0,0.0001795,2]
[354433166,1740492638218,-500.0,0.0001795,2]
[354433167,1740492638227,-500.0,0.0001795,2]
[354433168,1740492638237,-500.0,0.0001795,2]
[354433169,1740492638247,-500.0,0.0001795,2]
[354433170,1740492638257,-414.59341504,0.0001795,2]
[354433171,1740492638266,-500.0,0.0001795,2]
[354433172,1740492638277,-500.0,0.0001795,2]
[354433173,1740492638287,-500.0,0.0001795,2]
[354433174,1740492638297,-500.0,0.0001795,2]
[354433175,1740492638307,-500.0,0.0001795,2]
[354433176,1740492638317,-500.0,0.0001795,2]
[354433177,1740492638327,-633.08680255,0.0001795,2]
[354433178,1740492638337,-500.0,0.0001795,2]
[354433179,1740492638347,-500.0,0.0001795,2]
[354433180,1740492638356,-500.0,0.0001795,2]
[354433181,1740492638366,-500.0,0.0001795,2]
[354433182,1740492638376,-500.0,0.0001795,2]
[354433183,1740492638386,-500.0,0.0001795,2]
[354433184,1740492638397,-500.0,0.0001795,2]
[354433185,1740492638407,-500.0,0.0001795,2]
[354433186,1740492638417,-500.0,0.0001795,2]
[354433187,1740492638426,-500.0,0.0001795,2]
[354433188,1740492638436,-500.0,0.0001795,2]
[354433190,1740492638446,-500.0,0.0001795,2]
[354433191,1740492638456,-500.0,0.0001795,2]
[354433192,1740492638466,-500.0,0.0001795,2]
[354433193,1740492638476,-500.0,0.0001795,2]
[354433194,1740492638486,-500.0,0.0001795,2]
[354433195,1740492638495,-500.0,0.0001795,2]
[354433196,1740492638505,-500.0,0.0001795,2]
[354433197,1740492638515,-500.0,0.0001795,2]
[354433198,1740492638524,-500.0,0.0001795,2]
[354433199,1740492638534,-500.0,0.0001795,2]
[354433200,1740492638543,-500.0,0.0001795,2]
[354433201,1740492638553,-3304.80035217,0.00017952,2]
[354433202,1740492638982,-611.556,0.00017952,2]
[354433203,1740492639089,-55127.33262043,0.00017952,2]
[354433204,1740492639100,-33813.96764951,0.00017964,5]
[354433205,1740492639114,-20948.97686215,0.00017964,5]
[354433206,1740492639124,-635.56488133,0.00017973,2]
[354433207,1740492639134,-500.32403874,0.00017973,2]
[354433208,1740492639144,-500.0,0.00017973,2]
[354433209,1740492639155,-614.81024551,0.00017973,2]
[354433210,1740492639171,-584.051155,0.00017973,2]
[354433211,1740492639193,-500.0,0.00017973,2]
[354433212,1740492639213,-500.0,0.00017973,2]
[354433213,1740492639224,-205.09072233,0.00017973,2]
[354433214,1740492639235,-500.0,0.00017973,2]
[354433215,1740492639250,-500.0,0.00017973,2]
[354433216,1740492639261,-500.0,0.00017973,2]
[354433217,1740492639273,-500.0,0.00017973,2]
[354433218,1740492639285,-500.0,0.00017973,2]
[354433219,1740492639294,-400.17803338,0.00017973,2]
[354433220,1740492639304,-179.02,0.00018,2]
[354433221,1740492639315,-179.02,0.00018,2]
[354433222,1740492639327,-179.02,0.00018,2]
[354433223,1740492639338,-165.53,0.000186,2]
[354433224,1740492639350,-587.0,0.00018664,2]
[354433225,1740492639359,-1215.92453742,0.00018898,2]
[354433226,1740492639369,-1142.05599837,0.000189,2]
[354433227,1740492639391,-500.0,0.00019167,2]
[354433228,1740492639411,-404.71825884,0.00019167,2]
[354433229,1740492639431,-211.87725063,0.00019167,2]
[354433230,1740492639454,-500.0,0.00019167,2]
[354433231,1740492639477,-177131.066918,0.00019168,2]
[354433232,1740492639498,-500.65130225,0.00019173,2]
[354433233,1740492639518,-505.39739813,0.00019173,2]
[354433234,1740492639533,-500.65060085,0.00019173,2]
[354433235,1740492639550,-695.97617199,0.00019178,2]
[354433236,1740492639570,-695.97617199,0.00019178,2]
[354433239,1740492639591,-695.97617199,0.00019178,2]
[354433242,1740492639610,-695.97617199,0.00019178,2]
[354433243,1740492639626,-695.97617199,0.00019178,2]
[354433244,1740492639647,-695.97617199,0.00019178,2]
[354433245,1740492639662,-695.97617199,0.00019178,2]
[354433246,1740492639679,-695.97617199,0.00019178,2]
[354433247,1740492639693,-695.97617199,0.00019178,2]
[354433248,1740492639712,-695.97617199,0.00019178,2]
[354433249,1740492639729,-695.97617199,0.00019178,2]
[354433250,1740492639745,-695.97617199,0.00019178,2]
[354433251,1740492639761,-695.97617199,0.00019178,2]
[354433252,1740492639777,-695.97617199,0.00019178,2]
[354433255,1740492639794,-695.97617199,0.00019178,2]
[354433256,1740492639812,-695.97617199,0.00019178,2]
[354433257,1740492639829,-695.97617199,0.00019178,2]
[354433258,1740492639846,-695.97617199,0.00019178,2]
[354433259,1740492639863,-695.97617199,0.00019178,2]
[354433260,1740492639881,-695.97617199,0.00019178,2]
[354433261,1740492639898,-695.97617199,0.00019178,2]
[354433262,1740492639915,-695.97617199,0.00019178,2]
[354433263,1740492639932,-695.97617199,0.00019178,2]
[354433264,1740492639949,-695.97617199,0.00019178,2]
[354433265,1740492639966,-695.97617199,0.00019178,2]
[354433266,1740492639982,-695.97617199,0.00019178,2]
[354433267,1740492640000,-695.97617199,0.00019178,2]
[354433268,1740492640018,-695.97617199,0.00019178,2]
[354433269,1740492640035,-695.97617199,0.00019178,2]
[354433270,1740492640052,-695.97617199,0.00019178,2]
[354433271,1740492640069,-695.97617199,0.00019178,2]
[354433272,1740492640088,-695.97617199,0.00019178,2]
[354433273,1740492640107,-695.97617199,0.00019178,2]
[354433274,1740492640125,-695.97617199,0.00019178,2]
[354433275,1740492640143,-695.97617199,0.00019178,2]
[354433276,1740492640163,-695.97617199,0.00019178,2]
[354433277,1740492640180,-695.97617199,0.00019178,2]
[354433278,1740492640198,-695.97617199,0.00019178,2]
[354433279,1740492640215,-695.97617199,0.00019178,2]
[354433280,1740492640233,-695.97617199,0.00019178,2]
[354433281,1740492640250,-695.97617199,0.00019178,2]
[354433282,1740492640268,-695.97617199,0.00019178,2]
[354433283,1740492640286,-695.97617199,0.00019178,2]
[354433284,1740492640303,-695.97617199,0.00019178,2]
[354433285,1740492640319,-695.97617199,0.00019178,2]
[354433286,1740492640336,-695.97617199,0.00019178,2]
[354433287,1740492640352,-695.97617199,0.00019178,2]
[354433288,1740492640368,-695.97617199,0.00019178,2]
[354433289,1740492640382,-695.97617199,0.00019178,2]
[354433290,1740492640392,-695.97617199,0.00019178,2]
[354433291,1740492640608,-695.97617199,0.00019178,2]
[354433292,1740492640618,-695.97617199,0.00019178,2]
[354433293,1740492640627,-695.97617199,0.00019178,2]
[354433294,1740492640637,-695.97617199,0.00019178,2]
[354433295,1740492640647,-695.97617199,0.00019178,2]
[354433296,1740492640656,-695.97617199,0.00019178,2]
[354433297,1740492640666,-695.97617199,0.00019178,2]
[354433298,1740492640676,-59043.6889726,0.0001929,2]
[354433299,1740492640685,-3633.01752156,0.000193,2]
[354433300,1740492640695,-3633.01752152,0.000193,2]
[354433301,1740492640704,-501.94280497,0.00019463,2]
[354433302,1740492640714,-152.17732807,0.00019463,2]
[354433303,1740492640723,-3633.01752152,0.00019521,2]
[354433304,1740492640733,-160.0,0.0002,2]
[354433305,1740492640743,-500.0,0.00020214,2]
[354433306,1740492640752,-823.0,0.00020414,2]